[Event "*** Titled Tuesday Blitz"]
[Site "Chess.com"]
[Date "2019.07.02"]
[Round "7"]
[White "Oleksandr_Bortnyk"]
[Black "Mikhail_Golubev"]
[Result "1-0"]
[WhiteElo "2941"]
[BlackElo "2559"]
[TimeControl "180+2"]
[EndTime "14:37:17 PDT"]
[Termination "Oleksandr_Bortnyk won by resignation"]

1. d4 {[%clk 0:03:01.1]} 1... Nf6 {[%clk 0:03:00]} 2. Nc3 {[%clk 0:03:02.2]}
2... d5 {[%clk 0:03:00.1]} 3. Bf4 {[%clk 0:03:03.4]} 3... e6 {[%clk 0:02:59]} 4.
Nb5 {[%clk 0:03:04.2]} 4... Na6 {[%clk 0:02:58.6]} 5. e3 {[%clk 0:03:05.6]} 5...
Be7 {[%clk 0:02:59.7]} 6. Nf3 {[%clk 0:03:06.5]} 6... O-O {[%clk 0:02:59.6]} 7.
Ne5 {[%clk 0:03:07.9]} 7... Bd7 {[%clk 0:02:52.9]} 8. Nxd7 {[%clk 0:03:07.1]}
8... Qxd7 {[%clk 0:02:53.7]} 9. Nc3 {[%clk 0:03:08.4]} 9... c5 {[%clk
0:02:50.9]} 10. Bxa6 {[%clk 0:03:08.4]} 10... bxa6 {[%clk 0:02:51.3]} 11. O-O
{[%clk 0:03:10.1]} 11... Rfc8 {[%clk 0:02:46.9]} 12. a3 {[%clk 0:03:06.2]} 12...
cxd4 {[%clk 0:02:44.9]} 13. Qxd4 {[%clk 0:03:01.1]} 13... Rc4 {[%clk 0:02:40.8]}
14. Qd3 {[%clk 0:03:02.5]} 14... Rac8 {[%clk 0:02:40.1]} 15. Rfd1 {[%clk
0:03:00.5]} 15... Qc6 {[%clk 0:02:40.8]} 16. Ne2 {[%clk 0:02:58.2]} 16... Qb7
{[%clk 0:02:38.8]} 17. Be5 {[%clk 0:02:14.6]} 17... Ne4 {[%clk 0:02:34.5]} 18.
f3 {[%clk 0:02:14.4]} 18... Nc5 {[%clk 0:02:27.2]} 19. Qd2 {[%clk 0:02:15.1]}
19... Na4 {[%clk 0:02:21.2]} 20. Rdc1 {[%clk 0:02:00.7]} 20... f6 {[%clk
0:02:17.8]} 21. b3 {[%clk 0:01:53.7]} 21... R4c6 {[%clk 0:02:15]} 22. Bd4 {[%clk
0:01:53.8]} 22... e5 {[%clk 0:02:10.2]} 23. Bxe5 {[%clk 0:01:39.3]} 23... fxe5
{[%clk 0:02:07.1]} 24. Qxd5+ {[%clk 0:01:40.1]} 24... Kh8 {[%clk 0:02:00.6]} 25.
bxa4 {[%clk 0:01:41.2]} 25... Qb6 {[%clk 0:01:58.3]} 26. Qb3 {[%clk 0:01:15]}
26... Bc5 {[%clk 0:01:52.1]} 27. Qxb6 {[%clk 0:01:14.4]} 27... Bxb6 {[%clk
0:01:53.1]} 28. Kf2 {[%clk 0:01:11.5]} 28... Rxc2 {[%clk 0:01:53.7]} 29. Rxc2
{[%clk 0:01:12.7]} 29... Rxc2 {[%clk 0:01:54.1]} 30. Rc1 {[%clk 0:01:14.3]}
30... Rxc1 {[%clk 0:01:42.1]} 31. Nxc1 {[%clk 0:01:16.2]} 31... Bc5 {[%clk
0:01:33.1]} 32. Nd3 {[%clk 0:01:15.5]} 32... Bd6 {[%clk 0:01:34.2]} 33. Nb2
{[%clk 0:01:15.7]} 33... Kg8 {[%clk 0:01:29]} 34. Nc4 {[%clk 0:01:16.4]} 34...
Bc7 {[%clk 0:01:30]} 35. Ke2 {[%clk 0:01:16.2]} 35... Kf7 {[%clk 0:01:31]} 36.
Kd3 {[%clk 0:01:17.7]} 36... Ke6 {[%clk 0:01:32.2]} 37. Ke4 {[%clk 0:01:19.2]}
37... Bb8 {[%clk 0:01:30.3]} 38. h4 {[%clk 0:01:19]} 38... Bc7 {[%clk
0:01:31.3]} 39. h5 {[%clk 0:01:19.8]} 39... Bb8 {[%clk 0:01:31.6]} 40. g4 {[%clk
0:01:20.7]} 40... Bc7 {[%clk 0:01:31.1]} 41. g5 {[%clk 0:01:11.3]} 41... Bd8
{[%clk 0:01:32.1]} 42. f4 {[%clk 0:00:48.8]} 42... exf4 {[%clk 0:01:26.7]} 43.
exf4 {[%clk 0:00:50.7]} 43... h6 {[%clk 0:01:22.8]} 44. f5+ {[%clk 0:00:51.9]}
44... Kd7 {[%clk 0:01:15.4]} 45. f6 {[%clk 0:00:47]} 45... gxf6 {[%clk
0:01:02.9]} 46. gxh6 {[%clk 0:00:47]} 46... Ke6 {[%clk 0:01:03.5]} 47. Ne3
{[%clk 0:00:44.2]} 47... f5+ {[%clk 0:00:57]} 48. Nxf5 {[%clk 0:00:45]} 48...
Bf6 {[%clk 0:00:58.2]} 49. Nd4+ {[%clk 0:00:31.6]} 49... Kf7 {[%clk 0:00:55.3]}
50. Nf3 {[%clk 0:00:29.1]} 50... Bb2 {[%clk 0:00:46.2]} 51. Kf5 {[%clk
0:00:28.2]} 51... Bxa3 {[%clk 0:00:31.9]} 52. Ng5+ {[%clk 0:00:26.7]} 52... Kf8
{[%clk 0:00:06.4]} 53. Kg6 {[%clk 0:00:25.8]} 53... Bb2 {[%clk 0:00:03.7]} 54.
h7 {[%clk 0:00:27.1]} 1-0

[Event "*** Titled Tuesday Blitz"]
[Site "Chess.com"]
[Date "2019.07.02"]
[Round "7"]
[White "LisikValera"]
[Black "CalinGheorghiu"]
[Result "1-0"]
[WhiteElo "2452"]
[BlackElo "2288"]
[TimeControl "180+2"]
[EndTime "14:37:17 PDT"]
[Termination "LisikValera won by resignation"]

1. d4 {[%clk 0:03:01.9]} 1... Nf6 {[%clk 0:02:57.5]} 2. c4 {[%clk 0:03:02.2]}
2... e6 {[%clk 0:02:56.2]} 3. Nc3 {[%clk 0:03:03]} 3... Bb4 {[%clk 0:02:53.5]}
4. Nf3 {[%clk 0:03:04.1]} 4... O-O {[%clk 0:02:49.8]} 5. Bg5 {[%clk 0:03:04.8]}
5... d5 {[%clk 0:02:48.7]} 6. e3 {[%clk 0:03:03.8]} 6... Nbd7 {[%clk 0:02:34.7]}
7. cxd5 {[%clk 0:03:03.5]} 7... exd5 {[%clk 0:02:34.5]} 8. Bd3 {[%clk
0:02:57.8]} 8... c6 {[%clk 0:02:34.5]} 9. O-O {[%clk 0:02:57.3]} 9... Re8 {[%clk
0:02:35.1]} 10. Qc2 {[%clk 0:02:50.5]} 10... Nf8 {[%clk 0:02:35.1]} 11. Ne5
{[%clk 0:02:47.6]} 11... Ng6 {[%clk 0:02:20.4]} 12. f4 {[%clk 0:02:44.7]} 12...
c5 {[%clk 0:02:15.6]} 13. a3 {[%clk 0:02:31.4]} 13... cxd4 {[%clk 0:02:10.3]}
14. exd4 {[%clk 0:02:31.4]} 14... Ba5 {[%clk 0:02:10.8]} 15. Bxf6 {[%clk
0:02:21.2]} 15... Qxf6 {[%clk 0:02:05]} 16. Nxd5 {[%clk 0:02:17.9]} 16... Qd6
{[%clk 0:02:05.6]} 17. Bxg6 {[%clk 0:01:58.5]} 17... hxg6 {[%clk 0:02:02.4]} 18.
Qc5 {[%clk 0:01:58.7]} 18... Qxc5 {[%clk 0:01:47.3]} 19. dxc5 {[%clk 0:01:59]}
19... Be6 {[%clk 0:01:47.4]} 20. Ne3 {[%clk 0:01:50.9]} 20... Bc7 {[%clk
0:01:34.4]} 21. Rfe1 {[%clk 0:01:38.3]} 21... f6 {[%clk 0:01:31.7]} 22. Nxg6
{[%clk 0:01:36]} 22... Bf7 {[%clk 0:01:22.9]} 23. f5 {[%clk 0:01:36.7]} 23...
Rad8 {[%clk 0:01:21]} 24. Nf1 {[%clk 0:01:22.8]} 24... Bxg6 {[%clk 0:01:17.4]}
25. fxg6 {[%clk 0:01:23.2]} 25... Be5 {[%clk 0:01:17.8]} 26. g3 {[%clk
0:00:55.7]} 26... Bxb2 {[%clk 0:01:06.3]} 27. Rxe8+ {[%clk 0:00:46]} 27... Rxe8
{[%clk 0:01:08.2]} 28. Rb1 {[%clk 0:00:46.6]} 28... Bxa3 {[%clk 0:01:07.6]} 29.
Rxb7 {[%clk 0:00:46.9]} 29... Bxc5+ {[%clk 0:01:08.4]} 30. Kg2 {[%clk
0:00:47.5]} 30... a5 {[%clk 0:01:07.3]} 31. Rc7 {[%clk 0:00:41.6]} 31... Bb4
{[%clk 0:01:07.8]} 32. Kf3 {[%clk 0:00:38.5]} 32... a4 {[%clk 0:01:07.7]} 33.
Ra7 {[%clk 0:00:39.2]} 33... a3 {[%clk 0:01:07.3]} 34. Ra4 {[%clk 0:00:37.3]}
34... Bc5 {[%clk 0:00:52.3]} 35. Ra5 {[%clk 0:00:37.9]} 35... Bf8 {[%clk
0:00:50.2]} 36. Ne3 {[%clk 0:00:35.8]} 36... Rb8 {[%clk 0:00:50.8]} 37. Nf5
{[%clk 0:00:32.7]} 37... Bb4 {[%clk 0:00:33.4]} 38. Ra4 {[%clk 0:00:22.7]} 38...
Kf8 {[%clk 0:00:32.7]} 39. h4 {[%clk 0:00:22.9]} 39... Bc5 {[%clk 0:00:29.4]}
40. Ra5 {[%clk 0:00:20.6]} 40... Bb6 {[%clk 0:00:28.3]} 41. Ra6 {[%clk
0:00:21.2]} 41... Bc7 {[%clk 0:00:27.1]} 42. Rxa3 {[%clk 0:00:20.3]} 42... Be5
{[%clk 0:00:27.1]} 43. Ra7 {[%clk 0:00:20.5]} 43... Rb3+ {[%clk 0:00:27.8]} 44.
Kg4 {[%clk 0:00:20.7]} 44... Rb4+ {[%clk 0:00:28.4]} 45. Kh3 {[%clk 0:00:21.6]}
45... Rb3 {[%clk 0:00:29.5]} 46. Ra8+ {[%clk 0:00:21.8]} 46... Bb8 {[%clk
0:00:29.9]} 47. h5 {[%clk 0:00:21.9]} 47... Ke8 {[%clk 0:00:30.3]} 48. Kh4
{[%clk 0:00:14.8]} 48... Kd7 {[%clk 0:00:28.6]} 49. h6 {[%clk 0:00:15.6]} 49...
gxh6 {[%clk 0:00:18.3]} 50. g7 {[%clk 0:00:15.7]} 50... Rb4+ {[%clk 0:00:17.6]}
51. Kh5 {[%clk 0:00:15]} 1-0

[Event "*** Titled Tuesday Blitz"]
[Site "Chess.com"]
[Date "2019.07.02"]
[Round "7"]
[White "AlexanderKing"]
[Black "axvesik"]
[Result "1/2-1/2"]
[WhiteElo "2516"]
[BlackElo "2451"]
[TimeControl "180+2"]
[EndTime "14:37:19 PDT"]
[Termination "Game drawn by agreement"]

1. d4 {[%clk 0:03:01.9]} 1... Nf6 {[%clk 0:03:00.5]} 2. c4 {[%clk 0:03:03.3]}
2... e6 {[%clk 0:03:01.4]} 3. Nc3 {[%clk 0:03:04.6]} 3... Bb4 {[%clk 0:03:01.8]}
4. e3 {[%clk 0:03:06.1]} 4... O-O {[%clk 0:03:02]} 5. Bd3 {[%clk 0:03:06.5]}
5... d5 {[%clk 0:03:02.7]} 6. Nf3 {[%clk 0:03:08]} 6... c5 {[%clk 0:03:04]} 7.
O-O {[%clk 0:03:09.1]} 7... Nc6 {[%clk 0:03:05.3]} 8. cxd5 {[%clk 0:03:10.2]}
8... exd5 {[%clk 0:03:05]} 9. dxc5 {[%clk 0:03:11.5]} 9... Bg4 {[%clk 0:03:05]}
10. Na4 {[%clk 0:03:11.3]} 10... Qe7 {[%clk 0:03:05.8]} 11. a3 {[%clk
0:02:59.5]} 11... Bxc5 {[%clk 0:03:06.7]} 12. Nxc5 {[%clk 0:03:00.7]} 12... Qxc5
{[%clk 0:03:07.9]} 13. b4 {[%clk 0:03:01.9]} 13... Qe7 {[%clk 0:03:08.2]} 14.
Bb2 {[%clk 0:03:02.2]} 14... Ne4 {[%clk 0:03:03.6]} 15. Be2 {[%clk 0:03:01.3]}
15... Rac8 {[%clk 0:02:54.7]} 16. Rc1 {[%clk 0:02:48.1]} 16... Rfd8 {[%clk
0:02:48.2]} 17. h3 {[%clk 0:02:43.8]} 17... Bxf3 {[%clk 0:02:30.4]} 18. Bxf3
{[%clk 0:02:44.3]} 18... Ne5 {[%clk 0:02:31.3]} 19. Rxc8 {[%clk 0:02:18.7]}
19... Rxc8 {[%clk 0:02:16.7]} 20. Bxe4 {[%clk 0:02:05.6]} 20... dxe4 {[%clk
0:02:13.7]} 21. Qd4 {[%clk 0:02:06.7]} 21... f6 {[%clk 0:02:03.2]} 22. Qxe4
{[%clk 0:02:04.8]} 22... Rc4 {[%clk 0:01:46.8]} 23. Qd5+ {[%clk 0:01:55.9]}
23... Qf7 {[%clk 0:01:47.4]} 24. Qd8+ {[%clk 0:01:40.7]} 24... Qf8 {[%clk
0:01:47.5]} 25. Qxf8+ {[%clk 0:01:36.9]} 25... Kxf8 {[%clk 0:01:47.8]} 26. Rd1
{[%clk 0:01:32.9]} 26... Ke7 {[%clk 0:01:45.9]} 27. Rd2 {[%clk 0:01:12.6]} 27...
Rc6 {[%clk 0:01:31]} 28. Bd4 {[%clk 0:00:21.5]} 28... Ra6 {[%clk 0:01:14.7]} 29.
Rc2 {[%clk 0:00:17.9]} 29... Kd6 {[%clk 0:01:09]} 30. Rc3 {[%clk 0:00:18.3]}
30... b5 {[%clk 0:01:05]} 31. Bxe5+ {[%clk 0:00:16.1]} 31... fxe5 {[%clk
0:01:05.8]} 32. Kf1 {[%clk 0:00:15.5]} 32... Ra4 {[%clk 0:01:04.8]} 33. Ke2
{[%clk 0:00:07.2]} 33... a5 {[%clk 0:01:05.8]} 34. bxa5 {[%clk 0:00:09.1]} 34...
Rxa5 {[%clk 0:01:06.9]} 35. Kd3 {[%clk 0:00:08.2]} 35... Ra4 {[%clk 0:01:07.3]}
36. f3 {[%clk 0:00:08]} 36... b4 {[%clk 0:01:04.5]} 37. axb4 {[%clk 0:00:06.2]}
37... Rxb4 {[%clk 0:01:05.6]} 38. Ra3 {[%clk 0:00:07.5]} 38... Ke6 {[%clk
0:01:01]} 39. g4 {[%clk 0:00:06.4]} 39... Kf6 {[%clk 0:00:54.4]} 40. h4 {[%clk
0:00:07.1]} 40... h5 {[%clk 0:00:45.5]} 41. Ra6+ {[%clk 0:00:03.5]} 41... Kf7
{[%clk 0:00:44.4]} 42. gxh5 {[%clk 0:00:04.2]} 42... Rxh4 {[%clk 0:00:44.4]} 43.
Ra5 {[%clk 0:00:04]} 43... Rxh5 {[%clk 0:00:44.7]} 44. Ke4 {[%clk 0:00:04.7]}
44... Rh4+ {[%clk 0:00:44.9]} 45. Kf5 {[%clk 0:00:05.7]} 45... g6+ {[%clk
0:00:37.5]} 46. Kg5 {[%clk 0:00:06.8]} 46... Rh5+ {[%clk 0:00:38.5]} 47. Kg4
{[%clk 0:00:08]} 47... Rf5 {[%clk 0:00:37.7]} 48. Ra6 {[%clk 0:00:04.9]} 48...
Kg7 {[%clk 0:00:38]} 49. Ra7+ {[%clk 0:00:04.8]} 49... Kh6 {[%clk 0:00:38.5]}
50. Ra1 {[%clk 0:00:05.2]} 50... Rg5+ {[%clk 0:00:39.2]} 51. Kh4 {[%clk
0:00:06.6]} 51... Rh5+ {[%clk 0:00:40.4]} 52. Kg3 {[%clk 0:00:08.2]} 52... Rg5+
{[%clk 0:00:41.6]} 53. Kf2 {[%clk 0:00:09.8]} 53... Rf5 {[%clk 0:00:43]} 54. Ra5
{[%clk 0:00:11]} 54... e4 {[%clk 0:00:33.9]} 55. Rxf5 {[%clk 0:00:04.4]} 55...
gxf5 {[%clk 0:00:35.8]} 56. fxe4 {[%clk 0:00:03]} 56... fxe4 {[%clk 0:00:36.7]}
57. Kg2 {[%clk 0:00:03.3]} 57... Kg6 {[%clk 0:00:35.8]} 58. Kh3 {[%clk
0:00:02.5]} 58... Kh5 {[%clk 0:00:36.8]} 59. Kg3 {[%clk 0:00:04.4]} 59... Kg5
{[%clk 0:00:38.2]} 60. Kh3 {[%clk 0:00:06.3]} 60... Kh5 {[%clk 0:00:39.7]} 61.
Kg3 {[%clk 0:00:07.5]} 1/2-1/2

[Event "*** Titled Tuesday Blitz"]
[Site "Chess.com"]
[Date "2019.07.02"]
[Round "7"]
[White "DoHoChess"]
[Black "TregubovP"]
[Result "0-1"]
[WhiteElo "2548"]
[BlackElo "2541"]
[TimeControl "180+2"]
[EndTime "14:37:22 PDT"]
[Termination "TregubovP won by resignation"]

1. e4 {[%clk 0:02:58.2]} 1... c5 {[%clk 0:03:00.7]} 2. Nf3 {[%clk 0:02:57.8]}
2... e6 {[%clk 0:03:02]} 3. d3 {[%clk 0:02:58.5]} 3... Nc6 {[%clk 0:03:01]} 4.
g3 {[%clk 0:02:59.2]} 4... g6 {[%clk 0:03:01.6]} 5. Bg2 {[%clk 0:03:00.1]} 5...
Bg7 {[%clk 0:03:02.5]} 6. O-O {[%clk 0:03:01.6]} 6... Nge7 {[%clk 0:03:03.7]} 7.
Re1 {[%clk 0:03:03.1]} 7... d6 {[%clk 0:03:03.4]} 8. c3 {[%clk 0:03:04.1]} 8...
O-O {[%clk 0:03:04.4]} 9. d4 {[%clk 0:03:04.7]} 9... d5 {[%clk 0:02:56.3]} 10.
e5 {[%clk 0:03:03.2]} 10... b6 {[%clk 0:02:38.1]} 11. h4 {[%clk 0:02:57.4]}
11... h6 {[%clk 0:02:33.3]} 12. Bf4 {[%clk 0:02:57.7]} 12... f6 {[%clk
0:02:27.7]} 13. exf6 {[%clk 0:02:56.2]} 13... Rxf6 {[%clk 0:02:28.7]} 14. Ne5
{[%clk 0:02:51.4]} 14... Rxf4 {[%clk 0:02:18.9]} 15. gxf4 {[%clk 0:02:46.1]}
15... Nxe5 {[%clk 0:02:19.9]} 16. fxe5 {[%clk 0:02:48]} 16... Nf5 {[%clk
0:02:20.9]} 17. h5 {[%clk 0:02:37.4]} 17... Qg5 {[%clk 0:02:15.4]} 18. Qf3
{[%clk 0:02:05.6]} 18... gxh5 {[%clk 0:01:54.3]} 19. dxc5 {[%clk 0:02:03.1]}
19... bxc5 {[%clk 0:01:54.3]} 20. c4 {[%clk 0:02:04]} 20... Bb7 {[%clk
0:01:51.3]} 21. Nc3 {[%clk 0:02:03.9]} 21... Rf8 {[%clk 0:01:30.9]} 22. cxd5
{[%clk 0:01:58.5]} 22... Nh4 {[%clk 0:01:25.4]} 23. Qg3 {[%clk 0:01:58]} 23...
Nxg2 {[%clk 0:01:09]} 24. Qxg2 {[%clk 0:01:45.8]} 24... exd5 {[%clk 0:01:08.5]}
25. Qxg5 {[%clk 0:01:39.9]} 25... hxg5 {[%clk 0:01:09.2]} 26. Rad1 {[%clk
0:01:29.7]} 26... d4 {[%clk 0:01:07.3]} 27. Ne4 {[%clk 0:01:30.7]} 27... Rf4
{[%clk 0:00:59.5]} 28. Nxc5 {[%clk 0:01:31.7]} 28... Rg4+ {[%clk 0:01:00.5]} 29.
Kf1 {[%clk 0:01:32.4]} 29... Bg2+ {[%clk 0:01:01.2]} 30. Ke2 {[%clk 0:01:33.6]}
30... Bxe5 {[%clk 0:01:02.2]} 31. Kd3 {[%clk 0:01:13.9]} 31... Bd6 {[%clk
0:00:50.8]} 32. b4 {[%clk 0:01:14.9]} 32... h4 {[%clk 0:00:50.2]} 33. Re6 {[%clk
0:01:15.2]} 33... Bf4 {[%clk 0:00:46.3]} 34. Rde1 {[%clk 0:01:08.2]} 34... h3
{[%clk 0:00:25.3]} 35. Nd7 {[%clk 0:00:56.2]} 35... Rh4 {[%clk 0:00:21]} 36.
Re8+ {[%clk 0:00:51.4]} 36... Kg7 {[%clk 0:00:21.2]} 37. R1e7+ {[%clk
0:00:52.1]} 37... Kg6 {[%clk 0:00:22.4]} 38. Nf8+ {[%clk 0:00:47.5]} 38... Kf5
{[%clk 0:00:23.2]} 39. Rf7+ {[%clk 0:00:42.3]} 39... Kg4 {[%clk 0:00:24.3]} 40.
Ng6 {[%clk 0:00:44]} 40... h2 {[%clk 0:00:24.2]} 41. Re1 {[%clk 0:00:36.2]}
41... Rh3+ {[%clk 0:00:21.7]} 42. Kxd4 {[%clk 0:00:36]} 42... h1=Q {[%clk
0:00:22]} 43. Rxh1 {[%clk 0:00:35.3]} 43... Rxh1 {[%clk 0:00:23]} 44. Nxf4
{[%clk 0:00:35.9]} 44... gxf4 {[%clk 0:00:24.1]} 45. Rxa7 {[%clk 0:00:37.8]}
45... Kf3 {[%clk 0:00:24.2]} 46. Rf7 {[%clk 0:00:38.5]} 46... Rd1+ {[%clk
0:00:23.3]} 47. Kc5 {[%clk 0:00:34.4]} 47... Bf1 {[%clk 0:00:21.8]} 48. a4
{[%clk 0:00:34.1]} 48... Rd2 {[%clk 0:00:19.9]} 49. b5 {[%clk 0:00:34.9]} 49...
Rxf2 {[%clk 0:00:21]} 50. b6 {[%clk 0:00:36.4]} 50... Rc2+ {[%clk 0:00:20.8]}
51. Kd6 {[%clk 0:00:37.9]} 51... Rb2 {[%clk 0:00:21.1]} 52. b7 {[%clk
0:00:38.5]} 52... Ba6 {[%clk 0:00:21.9]} 53. Rf5 {[%clk 0:00:35.1]} 53... Bxb7
{[%clk 0:00:20.8]} 54. Kc7 {[%clk 0:00:37]} 54... Be4 {[%clk 0:00:21.2]} 55. Rf6
{[%clk 0:00:34.3]} 55... Ke3 {[%clk 0:00:22.2]} 56. a5 {[%clk 0:00:35.9]} 56...
f3 {[%clk 0:00:23.5]} 57. a6 {[%clk 0:00:37.1]} 57... f2 {[%clk 0:00:24.5]} 58.
a7 {[%clk 0:00:37.2]} 58... Rb7+ {[%clk 0:00:25.5]} 59. Kc8 {[%clk 0:00:36.9]}
59... Rxa7 {[%clk 0:00:26.8]} 0-1

[Event "*** Titled Tuesday Blitz"]
[Site "Chess.com"]
[Date "2019.07.02"]
[Round "7"]
[White "moro182"]
[Black "AbasovN"]
[Result "1/2-1/2"]
[WhiteElo "2803"]
[BlackElo "2880"]
[TimeControl "180+2"]
[EndTime "14:37:30 PDT"]
[Termination "Game drawn - insufficient material"]

1. d4 {[%clk 0:03:01.9]} 1... Nf6 {[%clk 0:03:01]} 2. c4 {[%clk 0:03:02.8]} 2...
e6 {[%clk 0:03:02.3]} 3. Nc3 {[%clk 0:03:02.9]} 3... d5 {[%clk 0:03:02.3]} 4.
cxd5 {[%clk 0:03:03.3]} 4... exd5 {[%clk 0:03:04.2]} 5. Bg5 {[%clk 0:03:04.1]}
5... Be7 {[%clk 0:03:05.8]} 6. e3 {[%clk 0:03:05.6]} 6... Nbd7 {[%clk
0:03:07.1]} 7. Bd3 {[%clk 0:03:02.2]} 7... c6 {[%clk 0:03:05.1]} 8. h3 {[%clk
0:02:58.2]} 8... Nf8 {[%clk 0:03:05.5]} 9. Nf3 {[%clk 0:02:56.7]} 9... Ne6
{[%clk 0:03:06.5]} 10. Bh4 {[%clk 0:02:57.4]} 10... O-O {[%clk 0:03:02.5]} 11.
Qc2 {[%clk 0:02:57.4]} 11... g6 {[%clk 0:03:03.5]} 12. O-O {[%clk 0:02:48.9]}
12... Ng7 {[%clk 0:03:01.3]} 13. Bxf6 {[%clk 0:02:37.3]} 13... Bxf6 {[%clk
0:03:02.1]} 14. b4 {[%clk 0:02:39.2]} 14... a6 {[%clk 0:03:02.5]} 15. a4 {[%clk
0:02:39.4]} 15... Bf5 {[%clk 0:02:59]} 16. b5 {[%clk 0:02:16.9]} 16... a5 {[%clk
0:02:41.8]} 17. bxc6 {[%clk 0:01:56.4]} 17... bxc6 {[%clk 0:02:43.7]} 18. Rab1
{[%clk 0:01:57.8]} 18... Rc8 {[%clk 0:02:38.4]} 19. Ne2 {[%clk 0:01:49.9]} 19...
Qd7 {[%clk 0:01:59.7]} 20. Nf4 {[%clk 0:01:30.7]} 20... Rfe8 {[%clk 0:01:54.2]}
21. Rfc1 {[%clk 0:01:14.6]} 21... h5 {[%clk 0:01:29.1]} 22. Bxf5 {[%clk
0:00:48.5]} 22... Nxf5 {[%clk 0:01:29.7]} 23. Nd3 {[%clk 0:00:49.9]} 23... Be7
{[%clk 0:01:24.7]} 24. Nfe5 {[%clk 0:00:48]} 24... Qe6 {[%clk 0:01:24.3]} 25.
Rb6 {[%clk 0:00:45.3]} 25... Ba3 {[%clk 0:01:23.5]} 26. Ra1 {[%clk 0:00:39.1]}
26... Bd6 {[%clk 0:01:24.3]} 27. Nf4 {[%clk 0:00:37.3]} 27... Qe7 {[%clk
0:01:06.6]} 28. Rxc6 {[%clk 0:00:34.9]} 28... Nxe3 {[%clk 0:00:56.3]} 29. fxe3
{[%clk 0:00:34]} 29... Rxc6 {[%clk 0:00:57]} 30. Qxc6 {[%clk 0:00:35.1]} 30...
Bxe5 {[%clk 0:00:58.6]} 31. Nxd5 {[%clk 0:00:33.9]} 31... Qe6 {[%clk 0:00:52.7]}
32. Rc1 {[%clk 0:00:21.6]} 32... Bg7 {[%clk 0:00:18]} 33. Qxe6 {[%clk 0:00:21]}
33... fxe6 {[%clk 0:00:19.9]} 34. Rc8 {[%clk 0:00:18.7]} 34... Rxc8 {[%clk
0:00:19.8]} 35. Ne7+ {[%clk 0:00:20.2]} 35... Kf7 {[%clk 0:00:21.7]} 36. Nxc8
{[%clk 0:00:22.1]} 36... e5 {[%clk 0:00:22.1]} 37. d5 {[%clk 0:00:17.7]} 37...
Bf8 {[%clk 0:00:23.5]} 38. Nb6 {[%clk 0:00:13.9]} 38... e4 {[%clk 0:00:23.2]}
39. Nc4 {[%clk 0:00:14.7]} 39... Bb4 {[%clk 0:00:24.3]} 40. Kf2 {[%clk
0:00:15.5]} 40... g5 {[%clk 0:00:24.1]} 41. Ke2 {[%clk 0:00:08.7]} 41... g4
{[%clk 0:00:19.2]} 42. hxg4 {[%clk 0:00:07]} 42... hxg4 {[%clk 0:00:21.1]} 43.
Nd2 {[%clk 0:00:07.6]} 43... Kf6 {[%clk 0:00:20.2]} 44. Nxe4+ {[%clk 0:00:08]}
44... Ke5 {[%clk 0:00:21.8]} 45. Nf2 {[%clk 0:00:07.7]} 45... Kxd5 {[%clk
0:00:20.9]} 46. Nxg4 {[%clk 0:00:08.7]} 46... Kc4 {[%clk 0:00:22.8]} 47. Ne5+
{[%clk 0:00:09.7]} 47... Kb3 {[%clk 0:00:24]} 48. Kd3 {[%clk 0:00:10.9]} 48...
Kxa4 {[%clk 0:00:23.8]} 49. Kc4 {[%clk 0:00:12.4]} 49... Ka3 {[%clk 0:00:25.2]}
50. g4 {[%clk 0:00:13.6]} 50... Bd2 {[%clk 0:00:26]} 51. Nd3 {[%clk 0:00:14.1]}
51... Bxe3 {[%clk 0:00:26.5]} 52. Kc3 {[%clk 0:00:11.8]} 52... a4 {[%clk
0:00:26.2]} 53. Nb2 {[%clk 0:00:12.1]} 53... Bd4+ {[%clk 0:00:25]} 54. Kxd4
{[%clk 0:00:13.5]} 54... Kxb2 {[%clk 0:00:26.9]} 55. g5 {[%clk 0:00:15.4]} 55...
a3 {[%clk 0:00:28.8]} 56. g6 {[%clk 0:00:17]} 56... a2 {[%clk 0:00:30.7]} 57. g7
{[%clk 0:00:18.5]} 57... a1=Q {[%clk 0:00:32.6]} 58. g8=Q {[%clk 0:00:19.9]}
58... Kc2+ {[%clk 0:00:33.9]} 59. Ke4 {[%clk 0:00:20.5]} 59... Qe1+ {[%clk
0:00:34.7]} 60. Kf5 {[%clk 0:00:21.2]} 60... Qf2+ {[%clk 0:00:35.5]} 61. Kg6
{[%clk 0:00:22.1]} 61... Qg3+ {[%clk 0:00:37]} 62. Kf7 {[%clk 0:00:24]} 62...
Qxg8+ {[%clk 0:00:38.8]} 63. Kxg8 {[%clk 0:00:25.9]} 1/2-1/2